Cogmind - Beta 11 @@@ ROGUE MODE // 2022.03.25 @ 17:48:10 Player: Dizzar Result: Self-destructed Performance ------------- Evolutions (2) 1000 Regions Visited (6) 1200 Robots Destroyed (23) 115 Value Destroyed (464) 464 Prototype IDs (25) 500 Alien Tech Used (0) 0 Bonus (300) 300 TOTAL SCORE: 3579 Bonus ------- Aligned with FarCom 300 Cogmind --------- Core Integrity 31/550 Matter 220/300 Energy 45/100 System Corruption 0% Temperature Cool (0) Movement Core (50) Location -8/Storage Parts ------- > --- POWER (1) -------- (None) > --- PROPULSION (3) --- (None) > --- UTILITY (5) ------ Visual Processing Unit 0b10 Alert Chip ECM Suite > --- WEAPON (2) ------- (None) > --- INVENTORY (5) ---- Ion Engine Improved Propulsion Shielding Light Assault Rifle Scythe Axe Peak State ------------ > --- POWER ------------ Light Nuclear Core > --- PROPULSION ------- Wheel Compact Wheel > --- UTILITY ---------- Small Storage Unit Visual Processing Unit 0b10 Alert Chip ECM Suite Improved Propulsion Shielding > --- WEAPON ----------- Light Assault Rifle Axe > --- INVENTORY -------- Ion Engine Light Nuclear Core ECM Suite Light Assault Rifle Shock Bomb Launcher Grenade Launcher Scythe [Rating: 23] Favorites ----------- Power Light Nuclear Core Engine Light Ion Engine Power Core Light Nuclear Core Propulsion Wheel Wheel Wheel Utility Small Storage Unit Device ECM Suite Storage Small Storage Unit Processor Visual Processing Unit Protection Improved Propulsion Shielding Weapon Light Assault Rifle Energy Gun Particle Gun Ballistic Gun Light Assault Rifle Launcher Grenade Launcher Slashing Weapon Axe Build | -11 -10 -10 -10 -9 -8 -8 ------- Run | Scr Mat Min Exi Min Mat Sto Slots Evolved 4 | . . . . . 4 . Power . | . . . . . . . Propulsion 1 | . . . . . 1 . Utility 3 | . . . . . 3 . Weapon . | . . . . . . . Parts Attached 27 | 6 7 . . . 8 6 Power 5 | 1 1 . . . 2 1 Engine 2 | 1 . . . . . 1 Core 3 | . 1 . . . 2 . Reactor . | . . . . . . . Propulsion 5 | 2 2 . . . 1 . Treads . | . . . . . . . Leg . | . . . . . . . Wheel 5 | 2 2 . . . 1 . Hover . | . . . . . . . Flight . | . . . . . . . Utility 6 | 1 1 . . . 3 1 Device 2 | . . . . . 1 1 Storage 1 | 1 . . . . . . Processor 2 | . 1 . . . 1 . Hackware . | . . . . . . . Protection 1 | . . . . . 1 . Artifact . | . . . . . . . Weapon 11 | 2 3 . . . 2 4 Energy Gun 3 | 1 1 . . . . 1 Energy Cannon . | . . . . . . . Ballistic Gun 4 | 1 2 . . . 1 . Ballistic Cannon . | . . . . . . . Launcher 2 | . . . . . . 2 Special Weapon . | . . . . . . . Impact Weapon . | . . . . . . . Slashing Weapon 2 | . . . . . 1 1 Piercing Weapon . | . . . . . . . Special Melee Weapon . | . . . . . . . Unidentified Prototypes 2 | . . . . . . 2 Parts Lost 13 | . 1 . . . 9 3 Power 3 | . . . . . 3 . Propulsion 4 | . 1 . . . 3 . Utility 2 | . . . . . 1 1 Weapon 4 | . . . . . 2 2 Highest Loss Streak 5 | . 1 . . . 5 3 To Critical Strikes . | . . . . . . . Average Slot Usage (%) 79 | . 89 100 100 100 72 29 Engine 1 | . 5 . . . . . Core 7 | . 8 14 14 14 4 . Wheel 19 | . 22 28 28 28 17 . Storage 11 | . 14 14 14 14 9 8 Processor 14 | . 10 14 14 14 18 18 Protection 2 | . . . . . 4 . Energy Gun 7 | . 13 14 14 14 1 . Ballistic Gun 12 | . 14 14 14 14 11 . Slashing Weapon 2 | . . . . . 5 . Naked Turns . | . . . . . . . Heaviest Build 18 | 10 14 14 14 14 18 13 Greatest Support 26 | 20 20 20 20 20 26 3 Greatest Overweight (x) 4 | . 4 . . . 1 4 Average Overweight (x) . | . . . . . . 1 Largest Inventory Capacity 8 | 8 8 8 8 8 8 8 Average Capacity 7 | 7 8 8 8 8 8 7 Most Carried 8 | 4 8 8 8 8 8 8 Average Carried 7 | 2 7 8 7 8 7 7 Final Capacity 8 | 8 8 8 8 8 8 5 Final Carried 8 | 4 8 8 8 8 8 5 Class Distribution -------------------- 59% | Mutant 23% | Assassin 16% | Skirmisher Dominant Class ---------------- Mutant | -10/Materials Mutant | -10/Mines Mutant | -10/Exiles Mutant | -9/Mines Assassin | -8/Materials Mutant | -8/Storage Resources | -11 -10 -10 -10 -9 -8 -8 ----------- Run | Scr Mat Min Exi Min Mat Sto Matter Collected 439 | 260 61 12 . . 106 . Remotely . | . . . . . . . Salvage Created 806 | . 369 12 . . 232 193 Parts 38 | . 18 2 . . 9 9 Haulers Intercepted 1 | . . . . . . 1 Recyclers Shooed 2 | . 1 . . . . 1 Parts Field Recycled . | . . . . . . . Retrieved Matter . | . . . . . . . Parts Self-Destructed . | . . . . . . . Prevented . | . . . . . . . Kills | -11 -10 -10 -10 -9 -8 -8 ------- Run | Scr Mat Min Exi Min Mat Sto Combat Hostiles Destroyed 16 | . 7 1 . . 4 4 Melee 1 | . . . . . 1 . Guns 11 | . 7 1 . . 3 . AOE 4 | . . . . . . 4 Classes Destroyed 6 | . 3 1 . . 1 1 Worker 1 | . 1 . . . . . Hauler 1 | . . . . . . 1 Recycler 4 | . . . . . 2 2 Watcher 1 | . 1 . . . . . Swarmer 8 | . . 1 . . 3 4 Grunt 8 | . 7 . . . 1 . Best Kill Streak 7 | . 2 1 . . 2 7 Combat Bots Only 4 | . 2 1 . . 2 4 Max Kills in Single Turn 6 | . 1 1 . . 1 6 Gunslinging . | . . . . . . . Exploded 3 | . . . . . . 3 Melee 1 | . . . . . 1 . Uniques/NPCs Destroyed . | . . . . . . . Combat | -11 -10 -10 -10 -9 -8 -8 -------- Run | Scr Mat Min Exi Min Mat Sto Damage Taken 1549 | . 336 25 . . 834 354 Core 531 | . 12 . . . 353 166 Absorbed by Shields . | . . . . . . . Redirected to Shielding 80 | . . . . . 80 . Core Remaining (%) 97 | 100 . . . 95 . . Volleys Fired 67 | . 43 2 . . 18 4 Largest 2 | . 2 2 . . 2 1 Hottest 85 | . 85 85 . . 85 36 Shots Fired 127 | . 85 4 . . 34 4 Gun 123 | . 85 4 . . 34 . Cannon . | . . . . . . . Launcher 4 | . . . . . . 4 Special . | . . . . . . . Kinetic 69 | . 43 2 . . 24 . Thermal 54 | . 42 2 . . 10 . Explosive 3 | . . . . . . 3 Electromagnetic 1 | . . . . . . 1 Robot Hit Streak 9 | . 9 1 . . 5 4 Robot Miss Streak 5 | . 3 2 . . 5 . Penetration Max . | . . . . . . . Secondary Targets . | . . . . . . . Shots Hit Robots 85 | . 56 1 . . 25 3 Core Hits 39 | . 22 1 . . 9 7 Critical Kills . | . . . . . . . Critical Parts Destroyed . | . . . . . . . Critical Strikes 2 | . . . . . 2 . Sever 2 | . . . . . 2 . Melee Attacks 28 | . . . . . 27 1 Impact . | . . . . . . . Slashing 28 | . . . . . 27 1 Piercing . | . . . . . . . Sneak Attacks 2 | . . . . . 2 . Combat Hostiles . | . . . . . . . Follow-up Attacks . | . . . . . . . Damage Inflicted 1746 | . 631 16 . . 529 570 Guns 813 | . 631 16 . . 166 . Cannons . | . . . . . . . Explosions 570 | . . . . . . 570 Melee 363 | . . . . . 363 . Ramming . | . . . . . . . Kinetic 347 | . 244 . . . 103 . Thermal 466 | . 387 16 . . 63 . Explosive 478 | . . . . . . 478 Electromagnetic 92 | . . . . . . 92 Impact . | . . . . . . . Slashing 363 | . . . . . 363 . Piercing . | . . . . . . . Highest Corruption . | . . . . . . . Average Corruption . | . . . . . . . Corruption Purged . | . . . . . . . Corruption Blocked . | . . . . . . . Overload Shots . | . . . . . . . Overflow Damage 53 | . . . . . 23 30 Projectiles . | . . . . . . . Explosions 30 | . . . . . . 30 Melee 23 | . . . . . 23 . Knockbacks . | . . . . . . . Impact . | . . . . . . . Kinetic . | . . . . . . . Secondary . | . . . . . . . Self-Inflicted Damage 83 | . . . . . . 83 Shots 3 | . . . . . . 3 Rammed . | . . . . . . . Targets Rammed . | . . . . . . . Kicked . | . . . . . . . Crushed . | . . . . . . . Highest Temperature 342 | . 342 78 . . 70 . Average Temperature 88 | . 99 40 . . 35 . Received Heat Transfer 546 | . 186 . . . 324 36 Siege Activations . | . . . . . . . Robots Corrupted . | . . . . . . . Combat Hostiles . | . . . . . . . Parts Fried . | . . . . . . . Impact Corruptions . | . . . . . . . Robots Melted . | . . . . . . . Combat Hostiles . | . . . . . . . Parts Melted 3 | . 2 . . . 1 . Heat Transferred 1101 | . 916 37 . . 148 . Parts Sabotaged . | . . . . . . . Parts Stolen . | . . . . . . . Parts Stripped . | . . . . . . . Power Chain Reactions . | . . . . . . . Missiles Intercepted . | . . . . . . . Alert | -11 -10 -10 -10 -9 -8 -8 ------- Run | Scr Mat Min Exi Min Mat Sto Peak Influence 183 | . 147 88 . . 87 183 Initial 28 | . . 28 . . . 24 Average 43 | . 42 55 . . 48 49 Maximum Alert Level . | . . . . . . . Low Security (%) 100 | 100 100 100 . 100 100 100 Level 1 . | . . . . . . . Level 2 . | . . . . . . . Level 3 . | . . . . . . . Level 4 . | . . . . . . . Level 5 . | . . . . . . . High Security . | . . . . . . . Max Security . | . . . . . . . Squads Dispatched 5 | . 2 . . . 3 . Investigation 1 | . . . . . 1 . Extermination . | . . . . . . . Reinforcement 4 | . 2 . . . 2 . Assault . | . . . . . . . Garrison . | . . . . . . . Intercept . | . . . . . . . Searches Triggered . | . . . . . . . Construction Impeded . | . . . . . . . Haulers Reinforced . | . . . . . . . Active Scanning Responses . | . . . . . . . Cargo Convoy Interrupts . | . . . . . . . Stealth | -11 -10 -10 -10 -9 -8 -8 --------- Run | Scr Mat Min Exi Min Mat Sto Distress Signals 1 | . . . . . 1 . Communications Jammed . | . . . . . . . Distress Signals . | . . . . . . . Times Spotted 44 | . 12 3 . . 19 10 Peak Tracking Total 9 | . 3 3 . . 9 7 Tactical Retreats 4 | . . 1 . . 2 1 Traps | -11 -10 -10 -10 -9 -8 -8 ------- Run | Scr Mat Min Exi Min Mat Sto Traps Triggered 3 | . 2 . . . 1 . Indirectly . | . . . . . . . Trap Hack Attempts . | . . . . . . . Triggered . | . . . . . . . Disarmed . | . . . . . . . Reprogrammed . | . . . . . . . Reused . | . . . . . . . Traps Extracted . | . . . . . . . Installed . | . . . . . . . Triggered . | . . . . . . . Machines | -11 -10 -10 -10 -9 -8 -8 ---------- Run | Scr Mat Min Exi Min Mat Sto Machines Disabled 4 | . 1 . . . 1 2 Max in Single Turn 1 | . 1 . . . 1 1 Machines Sabotaged . | . . . . . . . Garrisons Compromised . | . . . . . . . Overloaded Fab Kills . | . . . . . . . Hacking | -11 -10 -10 -10 -9 -8 -8 --------- Run | Scr Mat Min Exi Min Mat Sto Machines Accessed 6 | . 1 . 1 . 3 1 Terminals 4 | . 1 . . . 3 . Fabricators . | . . . . . . . Repair Stations . | . . . . . . . Recycling Units 1 | . . . . . . 1 Scanalyzers . | . . . . . . . Garrison Access . | . . . . . . . Total Hacks 16 | . 3 . 1 . 11 1 Successful 7 | . 1 . 1 . 4 1 Failed 9 | . 2 . . . 7 . Catastrophic 1 | . . . . . 1 . Database Lockouts . | . . . . . . . Manual 16 | . 3 . 1 . 11 1 Terminals 14 | . 3 . . . 11 . Fabricators . | . . . . . . . Repair Stations . | . . . . . . . Recycling Units 1 | . . . . . . 1 Scanalyzers . | . . . . . . . Garrison Access . | . . . . . . . Terminal Hacks 2 | . . . 1 . 1 . Part Schematic 1 | . . . . . 1 . EX-Prototype ID Bank 1 | . . . 1 . . . Fabricator Hacks . | . . . . . . . Repair Station Hacks . | . . . . . . . Recycling Unit Hacks . | . . . . . . . Scanalyzer . | . . . . . . . Garrison Access Hacks . | . . . . . . . Unauthorized Hacks 5 | . 1 . . . 3 1 Terminals 4 | . 1 . . . 3 . Botnet 4 | . 1 . . . 3 . Fabricators . | . . . . . . . Repair Stations . | . . . . . . . Recycling Units 1 | . . . . . . 1 Reject 1 | . . . . . . 1 Scanalyzers . | . . . . . . . Garrison Access . | . . . . . . . Data Cores Recovered . | . . . . . . . Used . | . . . . . . . Hacking Detections 4 | . 1 . . . 3 . Full Trace Events . | . . . . . . . Feedback Events . | . . . . . . . Feedback Blocked . | . . . . . . . Robot Schematics Acquired . | . . . . . . . Robots Built . | . . . . . . . Authchips . | . . . . . . . Time . | . . . . . . . Total Robot Build Rating . | . . . . . . . Part Schematics Acquired 1 | . . . . . 1 . Parts Built . | . . . . . . . Authchips . | . . . . . . . Time . | . . . . . . . Total Part Build Rating . | . . . . . . . Parts Repaired . | . . . . . . . Time . | . . . . . . . Parts Recycled . | . . . . . . . Recycled Matter . | . . . . . . . Retrieved Matter . | . . . . . . . Retrieved Components . | . . . . . . . Parts Scanalyzed . | . . . . . . . Part Schematics Acquired . | . . . . . . . Parts Damaged . | . . . . . . . Bothacking | -11 -10 -10 -10 -9 -8 -8 ------------ Run | Scr Mat Min Exi Min Mat Sto Used RIF Installer . | . . . . . . . Robots Hacked . | . . . . . . . Non-combat . | . . . . . . . Combat . | . . . . . . . Robot Hacks Applied . | . . . . . . . Relay Couplers Released . | . . . . . . . Fabnet Peak Effective % . | . . . . . . . Robots Rewired . | . . . . . . . Allies Hacked . | . . . . . . . Hacks Repelled . | . . . . . . . Allies | -11 -10 -10 -10 -9 -8 -8 -------- Run | Scr Mat Min Exi Min Mat Sto Total Allies . | . . . . . . . Largest Group . | . . . . . . . Highest-Rated Group . | . . . . . . . Highest-Rated Ally . | . . . . . . . Total Orders . | . . . . . . . Ally Attacks . | . . . . . . . Total Damage . | . . . . . . . Kills . | . . . . . . . Allies Corrupted . | . . . . . . . Allies Melted . | . . . . . . . Intel | -11 -10 -10 -10 -9 -8 -8 ------- Run | Scr Mat Min Exi Min Mat Sto Robot Analysis Total . | . . . . . . . Derelict Logs Recovered 1 | . . 1 . . . . Drone Launches . | . . . . . . . Drone Recoveries . | . . . . . . . Exploration | -11 -10 -10 -10 -9 -8 -8 ------------- Run | Scr Mat Min Exi Min Mat Sto Turns Passed 1874 | 58 648 69 165 40 760 134 Spaces Moved 1157 | 47 262 68 205 50 431 94 Core 104 | 4 2 . . . 4 94 Treads . | . . . . . . . Legs . | . . . . . . . Wheels 1053 | 43 260 68 205 50 427 . Hover . | . . . . . . . Flight . | . . . . . . . Fastest Speed 50 | 50 80 80 80 80 80 100 Average Speed 84 | 77 85 80 80 80 84 101 Slowest Speed 250 | 80 250 80 80 80 100 250 Overloaded Moves . | . . . . . . . Propulsion Burnouts . | . . . . . . . Robots Hopped . | . . . . . . . Cave-ins Triggered . | . . . . . . . Exploration Rate (%) 27 | 3 38 17 63 28 24 16 Regions Visited 6 Branch Regions 4 Pre-discovered Areas 1 | . . 1 . . . . Known Exits Taken . | . . . . . . . Unknown Exits Taken 6 | 1 1 1 1 1 1 . Scrap Searched . | . . . . . . . Spaces Dug 15 | . . . . . 15 . Terrain Destroyed 58 | . . . . . 15 43 Melee 15 | . . . . . 15 . Projectile . | . . . . . . . AOE 43 | . . . . . . 43 Terrain Rammed . | . . . . . . . Walls Destroyed . | . . . . . . . Machines Disabled . | . . . . . . . Actions | -11 -10 -10 -10 -9 -8 -8 --------- Run | Scr Mat Min Exi Min Mat Sto Total 1879 | 65 606 78 206 49 748 127 Wait 580 | 8 285 9 . . 259 19 Move 1151 | 46 261 67 204 49 430 94 Hop . | . . . . . . . Pick Up 15 | 5 6 . 1 . 3 . Fast Attach 17 | 5 7 . . . 3 2 Attach 9 | 1 . . . . 4 4 Detach 3 | . . . . . 2 1 Swap 1 | . . . . . 1 . Drop 8 | . 4 . 1 . 1 2 Fire 67 | . 43 2 . . 18 4 Melee 28 | . . . . . 27 1 Ram . | . . . . . . . Kick . | . . . . . . . Crush . | . . . . . . . Escape Stasis . | . . . . . . . Rewire . | . . . . . . . Trap . | . . . . . . . Miscellaneous . | . . . . . . . Route ------- -11/Scrapyard -10/Materials -10/Mines -10/Exiles (discovered 2 exits: [*Min x2]) -9/Mines -8/Materials -8/Storage History --------- Turn | Location | Event 15 | -11/Scrapyard | Discovered new exit (range 15) 59 | -11/Scrapyard | Entered Materials 330 | -10/Materials | Build established: Mutant 652 | -10/Materials | Discovered new exit (range 12) 707 | -10/Materials | Entered Mines 772 | -10/Mines | Deemed a non-threat by the Exiles lab entrance 773 | -10/Mines | Discovered new exit (range 5) 776 | -10/Mines | Entered Exiles 789 | -10/Exiles | Discovered new exit (range 17) 796 | -10/Exiles | Met 8R-AWN 808 | -10/Exiles | Met EX-HEX 833 | -10/Exiles | Met EX-BIN 842 | -10/Exiles | Aligned with FarCom system 843 | -10/Exiles | Given EX-Vault access code 861 | -10/Exiles | Opened EX-Vault 867 | -10/Exiles | Found 0b10 Alert Chip 883 | -10/Exiles | Warned to stay clear of 0b10 Research branches 904 | -10/Exiles | Met EX-DEC 934 | -10/Exiles | Discovered new exit (range 10) 941 | -10/Exiles | Left Exiles lab with 0b10 Alert Chip 941 | -10/Exiles | Entered Mines 971 | -9/Mines | Met a Derelict bent on vengeance 971 | -9/Mines | Discovered new exit (range 13) 981 | -9/Mines | Entered Materials 981 | -8/Materials | Evolved 4 slots: Propulsion x1, Utility x3 1605 | -8/Materials | Build established: Assassin 1727 | -8/Materials | Discovered new exit (range 14) 1740 | -8/Materials | Core integrity fell below 50% 1741 | -8/Materials | Entered Storage 1768 | -8/Storage | Lost 5 parts (1p2n1u1w) 1864 | -8/Storage | Core integrity fell below 20% 1875 | -8/Storage | Self-destructed Last Messages --------------- 01860_ R-06 Scavenger destroyed. 01860_ Penetrated by Slug. 01860_ A-02 Transporter destroyed. 01861_ The unstable cave ceiling collapses. 01863_ Penetrated by Slug. 01863_ Shock Bomb Launcher destroyed. 01864_ The unstable cave ceiling collapses. 01866_ Slug penetrates Wall. 01866_ Sml. Storage Unit destroyed. 01867_ R-06 Scavenger collects Com. Wheel. 01867_ R-06 Scavenger collects Weight Redist. System. 01869_ U-05 Engineer lays Concrete. 01869_ S-10 Pest destroyed. 01870_ The unstable cave ceiling collapses. 01870_ R-06 Scavenger collects Med. Storage Unit. 01870_ U-05 Engineer builds a Wall. 01872_ Penetrated by Slug. 01873_ R-06 Scavenger collects Ion Engine. 01874_ Grenade Launcher destroyed. 01874_ U-05 Engineer builds a Wall. Map ----- +----------------------------------------------------+ | ?????????????????????????????????????????????????? | | ?????????????????????????????????????????????????? | | ?????????????????????????????????????????????????? | | ?????????????????????????????????????????????????? | | ?????????????????????????????????????????????????? | | ?????????????????????????????????????????????????? | | ?????????????????????????????????????????????????? | | ?????????????????????????????????????????????????? | | ?????????????????????????????????????????????????? | | ????????????????????? ???????????????????????????? | | ????????????????????? ?w?????????????????????????? | | ??????????????????g?? ???????????????????????????? | | ????????????????????? ??????????????????????????? | | ????????????????????? ??????????????????????????? | | ?????????????????????? ??????????????????????????? | | ?????????????????????? ??????????????????????????? | | ?????????????????????? ?????????????????????????? | | ??????????????????????# ?????????????????????????? | | ??????????????????????# #######??????????????????? | | ??????????????# ""????# # # ##?????????????????? | | ??????????????? """???# ##????????????????? | | ????????????????? ### % ##???????????????? | | ??????????????????? + u#%! =%= #???????????????? | | ????????????????????# g# % #???????????????? | | ????????????????#+### r **! ##??????????????? | | ????????+ Y Y %@ % #??????????????? | | ????????# #####[*[ # ###?????????? | | ??????????????????????# ## h a + ?? | | ??????????????????????#+### #######????????? | | ???????????????????????????### ###??????????????? | | ?????????????????????????????# ##????????????????? | | ?????????????????????????????# ########??????????? | | ?????????????????????????????# # ####???????? | | ?????????????????????????????# # """#???????? | | ?????????????????????????????# # "" R"#???????? | | ????????????????????????????Y# # Y" """#???????? | | ?????????????????????? ??????# / "" #??????????? | | ??????????????????????"""????# # #??????????? | | ??????????????????????"""""??#w########??????????? | | ????????????????????# """"" # ###########?????? | | ????????????????????+ + + #?????? | | ????????????????????# """"" # # """" #?????? | | ??????????????????????"""""??# # ""[[" #?????? | | ??????????????????????"""????# + """*[" #?????? | | ?????????????????????? ??????# # [[""" #?????? | | ?????????????????????????????# # "[["" #?????? | | ?????????????????????##??????# # """" #?????? | | ????????????????????? ????# # #?????? | | ??????????????????????"" ""??# ################# | | ??????????????????????"" """ # | +----------------------------------------------------+ Best States ------------- Heat Dissipation 31 Energy Generation 14 Energy Capacity 280 Matter Stores 300 Matter Capacity 300 Sight Range 18 Terrain Scan Density 10 ECM Strength 1 Propulsion Shielding 66 Evasion (%) 44 Item Schematics ----------------- Hacking Suite | -8/Materials | Hacked Robot Schematics ------------------ None Fabricated ------------ Nothing Alien Tech Used ----------------- None Achievements -------------- None Challenges ------------ None Game ------ Seed ElectronEnhancedNetwork Manual? 0 Play Time 00:23:27 Cumulative 24.8 hours Start 2022.03.25 @ 17:26:06 End 2022.03.25 @ 17:48:10 Sessions 1 Manual Loads 0 Difficulty Rogue Special Mode None Game No. 31 Rogue 31 Adventurer 0 Explorer 0 Win Type - Total 1 Types 1/0/0/0/0/0/0/0/0 Lore% 24 Gallery% 30 Achievement% 29 Wizard Run 0 Options --------- ASCII 0 Keyboard 0 Movement Mouse Keybinds 0 Fullscreen 1 Font 18/SmallcapsGlow Map View 76x50 Tactical HUD 1 Map Filters NONE Filters NONE Steam 1 RUN: 6966a2be-f510-48b1-b247-945374fc4d09